[Event "Titled Tuesday Blitz November 07 Late 2023"]
[White "Ward, Ieuan C"]
[Black "Urbina Perez, Juan Antonio"]
[WhiteFideId "406627"]
[BlackFideId "2217368"]
[WhiteElo "2349"]
[BlackElo "2502"]
[Result "0-1"]
[Round "5"]
[TimeControl "180+1"]
[Date "2023.11.07"]
[WhiteClock "0:00:13"]
[BlackClock "0:01:20"]
[Board "104"]

1. d4 {[%clk 0:02:56]}  d5 {[%clk 0:02:59]} 2. c4 {[%clk 0:02:56]}  c6 {[%clk 0:02:59]} 3. Nf3 {[%clk 0:02:56]}  Nf6 {[%clk 0:02:58]} 4. Nc3 {[%clk 0:02:56]}  a6 {[%clk 0:02:58]} 5. cxd5 {[%clk 0:02:55]}  cxd5 {[%clk 0:02:59]} 6. Bg5 {[%clk 0:02:54]}  Ne4 {[%clk 0:02:58]} 7. Bf4 {[%clk 0:02:51]}  Nc6 {[%clk 0:02:56]} 8. e3 {[%clk 0:02:47]}  Bf5 {[%clk 0:02:53]} 9. Be2 {[%clk 0:02:45]}  e6 {[%clk 0:02:49]} 10. O-O {[%clk 0:02:44]}  Bd6 {[%clk 0:02:47]} 11. Nxe4 {[%clk 0:02:31]}  Bxe4 {[%clk 0:02:43]} 12. Bxd6 {[%clk 0:02:24]}  Qxd6 {[%clk 0:02:44]} 13. a3 {[%clk 0:02:18]}  O-O {[%clk 0:02:43]} 14. Bd3 {[%clk 0:02:17]}  Bxd3 {[%clk 0:02:34]} 15. Qxd3 {[%clk 0:02:18]}  Rfc8 {[%clk 0:02:33]} 16. Rac1 {[%clk 0:02:17]}  Rc7 {[%clk 0:02:33]} 17. Rc3 {[%clk 0:02:13]}  Rac8 {[%clk 0:02:32]} 18. Rfc1 {[%clk 0:02:12]}  Ne7 {[%clk 0:02:31]} 19. Ne5 {[%clk 0:01:53]}  f6 {[%clk 0:02:27]} 20. Nf3 {[%clk 0:01:51]}  Rxc3 {[%clk 0:02:24]} 21. Rxc3 {[%clk 0:01:51]}  Rxc3 {[%clk 0:02:24]} 22. Qxc3 {[%clk 0:01:51]}  Qc6 {[%clk 0:02:25]} 23. Qxc6 {[%clk 0:01:48]}  Nxc6 {[%clk 0:02:26]} 24. Kf1 {[%clk 0:01:44]}  Kf7 {[%clk 0:02:25]} 25. Ke2 {[%clk 0:01:44]}  Ke7 {[%clk 0:02:26]} 26. Kd3 {[%clk 0:01:44]}  Kd6 {[%clk 0:02:26]} 27. Nd2 {[%clk 0:01:44]}  e5 {[%clk 0:02:26]} 28. f3 {[%clk 0:01:42]}  b6 {[%clk 0:02:22]} 29. Nb3 {[%clk 0:01:32]}  h5 {[%clk 0:02:18]} 30. h4 {[%clk 0:01:31]}  Ne7 {[%clk 0:02:11]} 31. g4 {[%clk 0:01:23]}  Ng6 {[%clk 0:02:04]} 32. gxh5 {[%clk 0:01:20]}  Nxh4 {[%clk 0:02:05]} 33. dxe5+ {[%clk 0:01:12]}  fxe5 {[%clk 0:02:03]} 34. f4 {[%clk 0:01:10]}  e4+ {[%clk 0:02:02]} 35. Ke2 {[%clk 0:01:04]}  Nf5 {[%clk 0:02:02]} 36. Kf2 {[%clk 0:01:02]}  Ke6 {[%clk 0:01:46]} 37. a4 {[%clk 0:00:52]}  Nd6 {[%clk 0:01:42]} 38. Nd4+ {[%clk 0:00:33]}  Kf6 {[%clk 0:01:39]} 39. b3 {[%clk 0:00:34]}  Nf5 {[%clk 0:01:20]} 40. Nxf5 {[%clk 0:00:22]}  Kxf5 {[%clk 0:01:21]} 41. Kg3 {[%clk 0:00:20]}  a5 {[%clk 0:01:20]} 42. Kf2 {[%clk 0:00:13]}  Kg4 {[%clk 0:01:20]} 0-1


[Site "https://www.chess.com"]

[Event "Titled Tuesday Blitz November 07 Late 2023"]
[White "elmusmolamas"]
[Black "Bueno, Alfeu Junior Varela"]
[BlackFideId "2108879"]
[WhiteElo "2490"]
[BlackElo "2326"]
[Result "1-0"]
[Round "5"]
[TimeControl "180+1"]
[Date "2023.11.07"]
[WhiteClock "0:02:16"]
[BlackClock "0:01:48"]
[Board "105"]

1. e4 {[%clk 0:03:00]}  e6 {[%clk 0:02:57]} 2. d4 {[%clk 0:02:59]}  d5 {[%clk 0:02:58]} 3. Bd3 {[%clk 0:02:56]}  dxe4 {[%clk 0:02:58]} 4. Bxe4 {[%clk 0:02:57]}  Nf6 {[%clk 0:02:58]} 5. Bf3 {[%clk 0:02:57]}  Be7 {[%clk 0:02:59]} 6. Ne2 {[%clk 0:02:58]}  O-O {[%clk 0:02:59]} 7. O-O {[%clk 0:02:58]}  Nbd7 {[%clk 0:03:00]} 8. Bf4 {[%clk 0:02:55]}  Bd6 {[%clk 0:02:47]} 9. Nbc3 {[%clk 0:02:46]}  Bxf4 {[%clk 0:02:44]} 10. Nxf4 {[%clk 0:02:47]}  e5 {[%clk 0:02:44]} 11. dxe5 {[%clk 0:02:46]}  Nxe5 {[%clk 0:02:45]} 12. Be2 {[%clk 0:02:41]}  Bf5 {[%clk 0:02:43]} 13. Qc1 {[%clk 0:02:23]}  Qd4 {[%clk 0:02:42]} 14. Rd1 {[%clk 0:02:20]}  Qb4 {[%clk 0:02:42]} 15. a3 {[%clk 0:02:20]}  Qa5 {[%clk 0:02:28]} 16. Nfd5 {[%clk 0:02:17]}  c5 {[%clk 0:01:48]} 17. Ne7+ {[%clk 0:02:16]} 1-0


[Site "https://www.chess.com"]

[Event "Titled Tuesday Blitz November 07 Late 2023"]
[White "Szente Varga, Fruzsina"]
[Black "Meduri, Aakaash"]
[WhiteFideId "712264"]
[BlackFideId "2032252"]
[WhiteElo "2319"]
[BlackElo "2459"]
[Result "0-1"]
[Round "5"]
[TimeControl "180+1"]
[Date "2023.11.07"]
[WhiteClock "0:00:00"]
[BlackClock "0:00:39"]
[Board "107"]

1. e4 {[%clk 0:03:00]}  c5 {[%clk 0:02:58]} 2. Nf3 {[%clk 0:03:00]}  d6 {[%clk 0:02:57]} 3. d4 {[%clk 0:03:00]}  cxd4 {[%clk 0:02:57]} 4. Qxd4 {[%clk 0:03:01]}  a6 {[%clk 0:02:57]} 5. c4 {[%clk 0:02:59]}  Nc6 {[%clk 0:02:53]} 6. Qe3 {[%clk 0:02:59]}  Nf6 {[%clk 0:02:51]} 7. Nc3 {[%clk 0:02:58]}  e6 {[%clk 0:02:51]} 8. Bd3 {[%clk 0:02:53]}  Be7 {[%clk 0:02:50]} 9. O-O {[%clk 0:02:53]}  O-O {[%clk 0:02:50]} 10. b3 {[%clk 0:02:44]}  d5 {[%clk 0:02:44]} 11. exd5 {[%clk 0:02:36]}  exd5 {[%clk 0:02:44]} 12. cxd5 {[%clk 0:02:34]}  Nxd5 {[%clk 0:02:44]} 13. Nxd5 {[%clk 0:02:34]}  Qxd5 {[%clk 0:02:44]} 14. Bc4 {[%clk 0:02:33]}  Qc5 {[%clk 0:02:37]} 15. Qf4 {[%clk 0:02:10]}  Qf5 {[%clk 0:02:35]} 16. Qxf5 {[%clk 0:01:44]}  Bxf5 {[%clk 0:02:35]} 17. Bb2 {[%clk 0:01:45]}  Rad8 {[%clk 0:02:26]} 18. Rad1 {[%clk 0:01:44]}  b5 {[%clk 0:02:22]} 19. Bd5 {[%clk 0:01:32]}  Nb4 {[%clk 0:02:21]} 20. Bb7 {[%clk 0:01:32]}  Rb8 {[%clk 0:02:16]} 21. Nd4 {[%clk 0:01:29]}  Bg6 {[%clk 0:02:06]} 22. Bf3 {[%clk 0:01:21]}  Bf6 {[%clk 0:02:04]} 23. Ba3 {[%clk 0:01:14]}  a5 {[%clk 0:01:52]} 24. Bxb4 {[%clk 0:01:11]}  axb4 {[%clk 0:01:53]} 25. Nc6 {[%clk 0:01:12]}  Rb7 {[%clk 0:01:48]} 26. Nxb4 {[%clk 0:01:05]}  Ra7 {[%clk 0:01:48]} 27. Bc6 {[%clk 0:00:49]}  Bc3 {[%clk 0:01:39]} 28. Nd5 {[%clk 0:00:47]}  b4 {[%clk 0:01:38]} 29. Nxc3 {[%clk 0:00:42]}  bxc3 {[%clk 0:01:38]} 30. a4 {[%clk 0:00:41]}  Rc7 {[%clk 0:01:32]} 31. Bb5 {[%clk 0:00:34]}  Bc2 {[%clk 0:01:32]} 32. Rc1 {[%clk 0:00:20]}  Bxb3 {[%clk 0:01:32]} 33. Rfe1 {[%clk 0:00:20]}  g6 {[%clk 0:01:27]} 34. Re3 {[%clk 0:00:20]}  Rfc8 {[%clk 0:01:27]} 35. g3 {[%clk 0:00:18]}  Be6 {[%clk 0:01:20]} 36. a5 {[%clk 0:00:14]}  Rc5 {[%clk 0:01:20]} 37. Bf1 {[%clk 0:00:13]}  Rxa5 {[%clk 0:01:18]} 38. Bd3 {[%clk 0:00:04]}  Rac5 {[%clk 0:01:14]} 39. Bc2 {[%clk 0:00:04]}  Kg7 {[%clk 0:01:14]} 40. h4 {[%clk 0:00:04]}  h6 {[%clk 0:01:13]} 41. Kg2 {[%clk 0:00:04]}  g5 {[%clk 0:01:13]} 42. hxg5 {[%clk 0:00:05]}  hxg5 {[%clk 0:01:14]} 43. f4 {[%clk 0:00:05]}  gxf4 {[%clk 0:00:52]} 44. gxf4 {[%clk 0:00:06]}  Kf6 {[%clk 0:00:53]} 45. Kf3 {[%clk 0:00:06]}  Rh8 {[%clk 0:00:52]} 46. Rg1 {[%clk 0:00:06]}  Rh3+ {[%clk 0:00:49]} 47. Rg3 {[%clk 0:00:04]}  Bd5+ {[%clk 0:00:50]} 48. Kg4 {[%clk 0:00:04]}  Rh2 {[%clk 0:00:45]} 49. Rxc3 {[%clk 0:00:02]}  Rxc2 {[%clk 0:00:44]} 50. Rxc5 {[%clk 0:00:01]}  Rxc5 {[%clk 0:00:44]} 51. Re3 {[%clk 0:00:01]}  Be6+ {[%clk 0:00:42]} 52. Kg3 {[%clk 0:00:01]}  Rb5 {[%clk 0:00:40]} 53. Kh4 {[%clk 0:00:00]}  Rb4 {[%clk 0:00:39]} 0-1


[Site "https://www.chess.com"]

[Event "Titled Tuesday Blitz November 07 Late 2023"]
[White "Harish, Neeraj"]
[Black "Halak, Miklos"]
[WhiteFideId "30958130"]
[BlackFideId "726400"]
[WhiteElo "2274"]
[BlackElo "2450"]
[Result "1-0"]
[Round "5"]
[TimeControl "180+1"]
[Date "2023.11.07"]
[WhiteClock "0:00:09"]
[BlackClock "0:00:02"]
[Board "108"]

1. e4 {[%clk 0:03:00]}  c6 {[%clk 0:02:59]} 2. d4 {[%clk 0:03:00]}  d5 {[%clk 0:03:00]} 3. e5 {[%clk 0:03:00]}  c5 {[%clk 0:03:00]} 4. dxc5 {[%clk 0:02:59]}  e6 {[%clk 0:02:58]} 5. c3 {[%clk 0:02:58]}  Bxc5 {[%clk 0:02:57]} 6. Qg4 {[%clk 0:02:57]}  Ne7 {[%clk 0:02:52]} 7. Bd3 {[%clk 0:02:40]}  Ng6 {[%clk 0:02:45]} 8. Nf3 {[%clk 0:02:38]}  Nc6 {[%clk 0:02:44]} 9. O-O {[%clk 0:02:21]}  O-O {[%clk 0:02:15]} 10. Re1 {[%clk 0:01:42]}  Qb6 {[%clk 0:02:10]} 11. Re2 {[%clk 0:01:30]}  f5 {[%clk 0:01:45]} 12. exf6 {[%clk 0:00:42]}  e5 {[%clk 0:01:45]} 13. Qh5 {[%clk 0:00:42]}  Rxf6 {[%clk 0:01:36]} 14. b4 {[%clk 0:00:39]}  Bf8 {[%clk 0:01:26]} 15. Ng5 {[%clk 0:00:26]}  h6 {[%clk 0:01:20]} 16. Bxg6 {[%clk 0:00:24]}  Rxg6 {[%clk 0:01:09]} 17. Qxg6 {[%clk 0:00:21]}  hxg5 {[%clk 0:01:09]} 18. Bxg5 {[%clk 0:00:16]}  e4 {[%clk 0:01:02]} 19. Nd2 {[%clk 0:00:15]}  Ne5 {[%clk 0:00:59]} 20. Qxb6 {[%clk 0:00:14]}  axb6 {[%clk 0:00:59]} 21. Be3 {[%clk 0:00:15]}  b5 {[%clk 0:00:57]} 22. Bd4 {[%clk 0:00:16]}  Nc4 {[%clk 0:00:56]} 23. Nb3 {[%clk 0:00:16]}  Bd7 {[%clk 0:00:50]} 24. Rd1 {[%clk 0:00:16]}  Bc6 {[%clk 0:00:49]} 25. Bc5 {[%clk 0:00:16]}  Bxc5 {[%clk 0:00:40]} 26. Nxc5 {[%clk 0:00:17]}  b6 {[%clk 0:00:41]} 27. Nb3 {[%clk 0:00:17]}  Kf7 {[%clk 0:00:38]} 28. f3 {[%clk 0:00:17]}  e3 {[%clk 0:00:36]} 29. Nd4 {[%clk 0:00:16]}  Bd7 {[%clk 0:00:35]} 30. Kf1 {[%clk 0:00:14]}  Kf6 {[%clk 0:00:34]} 31. Nc2 {[%clk 0:00:15]}  Rxa2 {[%clk 0:00:32]} 32. Nxe3 {[%clk 0:00:15]}  Nxe3+ {[%clk 0:00:26]} 33. Rxe3 {[%clk 0:00:15]}  Be6 {[%clk 0:00:21]} 34. Re2 {[%clk 0:00:14]}  Ra3 {[%clk 0:00:21]} 35. Rc2 {[%clk 0:00:13]}  Ke5 {[%clk 0:00:20]} 36. Rd4 {[%clk 0:00:12]}  g5 {[%clk 0:00:20]} 37. Kf2 {[%clk 0:00:12]}  Rb3 {[%clk 0:00:20]} 38. Kg3 {[%clk 0:00:12]}  Ra3 {[%clk 0:00:20]} 39. h4 {[%clk 0:00:13]}  gxh4+ {[%clk 0:00:20]} 40. Kxh4 {[%clk 0:00:13]}  Ra1 {[%clk 0:00:20]} 41. Kg3 {[%clk 0:00:13]}  Kd6 {[%clk 0:00:19]} 42. f4 {[%clk 0:00:13]}  Bf5 {[%clk 0:00:20]} 43. Rcd2 {[%clk 0:00:13]}  Be6 {[%clk 0:00:17]} 44. f5 {[%clk 0:00:12]}  Bf7 {[%clk 0:00:17]} 45. Kf4 {[%clk 0:00:12]}  Rc1 {[%clk 0:00:17]} 46. R2d3 {[%clk 0:00:12]}  Rf1+ {[%clk 0:00:17]} 47. Kg5 {[%clk 0:00:12]}  Ke5 {[%clk 0:00:16]} 48. g4 {[%clk 0:00:12]}  Rh1 {[%clk 0:00:14]} 49. Re3+ {[%clk 0:00:11]}  Kd6 {[%clk 0:00:10]} 50. Kf6 {[%clk 0:00:11]}  Bg8 {[%clk 0:00:04]} 51. g5 {[%clk 0:00:12]}  Rh7 {[%clk 0:00:03]} 52. g6 {[%clk 0:00:11]}  Rd7 {[%clk 0:00:03]} 53. Re8 {[%clk 0:00:08]}  Bh7 {[%clk 0:00:03]} 54. gxh7 {[%clk 0:00:08]}  Rxh7 {[%clk 0:00:04]} 55. Kg6 {[%clk 0:00:09]}  Kc7 {[%clk 0:00:02]} 56. Kxh7 {[%clk 0:00:09]} 1-0


[Site "https://www.chess.com"]

[Event "Titled Tuesday Blitz November 07 Late 2023"]
[White "Melikhov, Evgeny V."]
[Black "Jovic, Stanoje"]
[WhiteFideId "4122046"]
[BlackFideId "905020"]
[WhiteElo "2386"]
[BlackElo "2443"]
[Result "0-1"]
[Round "5"]
[TimeControl "180+1"]
[Date "2023.11.07"]
[WhiteClock "0:00:10"]
[BlackClock "0:00:58"]
[Board "109"]

1. d4 {[%clk 0:03:00]}  Nf6 {[%clk 0:02:59]} 2. c4 {[%clk 0:03:00]}  e6 {[%clk 0:02:59]} 3. Nc3 {[%clk 0:03:00]}  Bb4 {[%clk 0:02:59]} 4. Qc2 {[%clk 0:03:00]}  d5 {[%clk 0:02:58]} 5. cxd5 {[%clk 0:03:00]}  exd5 {[%clk 0:02:56]} 6. Bg5 {[%clk 0:02:59]}  O-O {[%clk 0:02:56]} 7. e3 {[%clk 0:02:55]}  c5 {[%clk 0:02:54]} 8. dxc5 {[%clk 0:02:48]}  Nc6 {[%clk 0:02:51]} 9. Bd3 {[%clk 0:02:41]}  d4 {[%clk 0:02:49]} 10. exd4 {[%clk 0:02:29]}  Nxd4 {[%clk 0:02:46]} 11. Qd2 {[%clk 0:02:13]}  Re8+ {[%clk 0:02:43]} 12. Nge2 {[%clk 0:01:59]}  Bg4 {[%clk 0:02:29]} 13. Be3 {[%clk 0:01:55]}  Bxe2 {[%clk 0:02:10]} 14. Bxe2 {[%clk 0:01:54]}  Bxc5 {[%clk 0:02:04]} 15. O-O {[%clk 0:01:45]}  Nxe2+ {[%clk 0:02:04]} 16. Qxe2 {[%clk 0:01:38]}  Bxe3 {[%clk 0:02:03]} 17. fxe3 {[%clk 0:01:38]}  Qb6 {[%clk 0:02:01]} 18. Rae1 {[%clk 0:01:34]}  Re5 {[%clk 0:01:58]} 19. Kh1 {[%clk 0:01:30]}  Rae8 {[%clk 0:01:57]} 20. e4 {[%clk 0:01:28]}  h6 {[%clk 0:01:54]} 21. Qf2 {[%clk 0:00:58]}  Qxf2 {[%clk 0:01:39]} 22. Rxf2 {[%clk 0:00:58]}  Rd8 {[%clk 0:01:34]} 23. Rfe2 {[%clk 0:00:55]}  Rd4 {[%clk 0:01:30]} 24. Kg1 {[%clk 0:00:49]}  b5 {[%clk 0:01:30]} 25. a3 {[%clk 0:00:46]}  a5 {[%clk 0:01:30]} 26. h3 {[%clk 0:00:35]}  b4 {[%clk 0:01:28]} 27. axb4 {[%clk 0:00:35]}  axb4 {[%clk 0:01:28]} 28. Na2 {[%clk 0:00:35]}  Kf8 {[%clk 0:01:25]} 29. Kf2 {[%clk 0:00:30]}  Nxe4+ {[%clk 0:01:24]} 30. Kf3 {[%clk 0:00:20]}  f5 {[%clk 0:01:20]} 31. Kf4 {[%clk 0:00:16]}  Red5 {[%clk 0:01:14]} 32. Kf3 {[%clk 0:00:11]}  g5 {[%clk 0:01:08]} 33. g4 {[%clk 0:00:09]}  Rd3+ {[%clk 0:01:02]} 34. Kg2 {[%clk 0:00:10]}  Rg3+ {[%clk 0:00:58]} 35. Kh2 {[%clk 0:00:10]}  Rdd3 {[%clk 0:00:58]} 36. gxf5 {[%clk 0:00:10]}  Rxh3+ {[%clk 0:00:59]} 37. Kg2 {[%clk 0:00:10]}  Rdg3+ {[%clk 0:00:59]} 38. Kf1 {[%clk 0:00:10]}  Rh1# {[%clk 0:00:58]} 0-1


[Site "https://www.chess.com"]

[Event "Titled Tuesday Blitz November 07 Late 2023"]
[White "Kopacz, Grzegorz"]
[Black "Arnold, Ken"]
[WhiteFideId "1109880"]
[BlackFideId "2056836"]
[WhiteElo "2233"]
[BlackElo "2416"]
[Result "0-1"]
[Round "5"]
[TimeControl "180+1"]
[Date "2023.11.07"]
[WhiteClock "0:00:13"]
[BlackClock "0:00:47"]
[Board "111"]

1. c4 {[%clk 0:03:00]}  Nf6 {[%clk 0:02:59]} 2. Nf3 {[%clk 0:03:00]}  b6 {[%clk 0:02:58]} 3. g3 {[%clk 0:03:00]}  Bb7 {[%clk 0:02:59]} 4. Bg2 {[%clk 0:03:00]}  c5 {[%clk 0:02:57]} 5. O-O {[%clk 0:03:00]}  Nc6 {[%clk 0:02:57]} 6. Nc3 {[%clk 0:03:00]}  g6 {[%clk 0:02:56]} 7. b3 {[%clk 0:02:58]}  Bg7 {[%clk 0:02:56]} 8. Bb2 {[%clk 0:02:59]}  O-O {[%clk 0:02:57]} 9. d4 {[%clk 0:02:52]}  cxd4 {[%clk 0:02:55]} 10. Nxd4 {[%clk 0:02:52]}  Rc8 {[%clk 0:02:52]} 11. Nxc6 {[%clk 0:02:45]}  Bxc6 {[%clk 0:02:49]} 12. Qd2 {[%clk 0:02:26]}  Bxg2 {[%clk 0:02:48]} 13. Kxg2 {[%clk 0:02:26]}  d6 {[%clk 0:02:33]} 14. Rac1 {[%clk 0:02:19]}  Qd7 {[%clk 0:02:31]} 15. Nd5 {[%clk 0:02:19]}  Qb7 {[%clk 0:02:26]} 16. Bxf6 {[%clk 0:01:58]}  Bxf6 {[%clk 0:02:25]} 17. f3 {[%clk 0:01:53]}  Bg7 {[%clk 0:02:22]} 18. e4 {[%clk 0:01:51]}  Rfd8 {[%clk 0:02:20]} 19. Rfd1 {[%clk 0:01:51]}  h5 {[%clk 0:02:18]} 20. Nc3 {[%clk 0:01:39]}  e6 {[%clk 0:02:10]} 21. Ne2 {[%clk 0:01:34]}  Rc7 {[%clk 0:01:57]} 22. Qg5 {[%clk 0:01:26]}  Rcd7 {[%clk 0:01:55]} 23. Rc2 {[%clk 0:01:25]}  Kh7 {[%clk 0:01:30]} 24. Qf4 {[%clk 0:01:09]}  d5 {[%clk 0:01:23]} 25. exd5 {[%clk 0:01:08]}  exd5 {[%clk 0:01:23]} 26. cxd5 {[%clk 0:01:05]}  Rxd5 {[%clk 0:01:22]} 27. Rxd5 {[%clk 0:00:49]}  Qxd5 {[%clk 0:01:21]} 28. Rc7 {[%clk 0:00:46]}  Qd1 {[%clk 0:01:14]} 29. Re7 {[%clk 0:00:32]}  Rd2 {[%clk 0:01:10]} 30. Kf2 {[%clk 0:00:24]}  Bd4+ {[%clk 0:01:05]} 31. Kg2 {[%clk 0:00:17]}  Rxe2+ {[%clk 0:01:05]} 32. Rxe2 {[%clk 0:00:16]}  Qxe2+ {[%clk 0:01:05]} 33. Kh3 {[%clk 0:00:17]}  Qe6+ {[%clk 0:00:53]} 34. Kg2 {[%clk 0:00:17]}  Bf6 {[%clk 0:00:49]} 35. Qc7 {[%clk 0:00:14]}  Qe2+ {[%clk 0:00:48]} 36. Kh3 {[%clk 0:00:13]}  Qf1# {[%clk 0:00:47]} 0-1


[Site "https://www.chess.com"]

[Event "Titled Tuesday Blitz November 07 Late 2023"]
[White "Herman, Daniel"]
[Black "kalxandria"]
[WhiteFideId "30935008"]
[WhiteElo "2409"]
[BlackElo "2228"]
[Result "1-0"]
[Round "5"]
[TimeControl "180+1"]
[Date "2023.11.07"]
[WhiteClock "0:00:20"]
[BlackClock "0:00:00"]
[Board "112"]

1. e4 {[%clk 0:03:00]}  e6 {[%clk 0:02:58]} 2. d4 {[%clk 0:02:59]}  d5 {[%clk 0:02:58]} 3. Nc3 {[%clk 0:02:59]}  Nf6 {[%clk 0:02:57]} 4. e5 {[%clk 0:02:59]}  Nfd7 {[%clk 0:02:56]} 5. f4 {[%clk 0:03:00]}  c5 {[%clk 0:02:55]} 6. Nf3 {[%clk 0:03:00]}  Nc6 {[%clk 0:02:55]} 7. Be3 {[%clk 0:03:00]}  a6 {[%clk 0:02:54]} 8. Qd2 {[%clk 0:02:58]}  Be7 {[%clk 0:02:52]} 9. Ne2 {[%clk 0:02:44]}  O-O {[%clk 0:02:49]} 10. Ng3 {[%clk 0:02:41]}  f5 {[%clk 0:02:45]} 11. c3 {[%clk 0:02:27]}  b5 {[%clk 0:02:40]} 12. dxc5 {[%clk 0:02:24]}  Nxc5 {[%clk 0:02:34]} 13. Nd4 {[%clk 0:02:22]}  Bd7 {[%clk 0:02:25]} 14. Be2 {[%clk 0:02:18]}  Ne4 {[%clk 0:02:16]} 15. Nxe4 {[%clk 0:02:17]}  dxe4 {[%clk 0:02:15]} 16. O-O {[%clk 0:02:10]}  Nxd4 {[%clk 0:02:14]} 17. Bxd4 {[%clk 0:01:58]}  Bc6 {[%clk 0:02:15]} 18. Qe3 {[%clk 0:01:56]}  g5 {[%clk 0:02:05]} 19. Rad1 {[%clk 0:01:42]}  gxf4 {[%clk 0:02:00]} 20. Qxf4 {[%clk 0:01:42]}  Qe8 {[%clk 0:01:48]} 21. Qh6 {[%clk 0:00:53]}  Qg6 {[%clk 0:01:37]} 22. Be3 {[%clk 0:00:53]}  Qxh6 {[%clk 0:01:32]} 23. Bxh6 {[%clk 0:00:54]}  Rfd8 {[%clk 0:01:31]} 24. g4 {[%clk 0:00:43]}  Bc5+ {[%clk 0:01:01]} 25. Kg2 {[%clk 0:00:39]}  Rd5 {[%clk 0:00:55]} 26. gxf5 {[%clk 0:00:32]}  Rxe5 {[%clk 0:00:49]} 27. f6 {[%clk 0:00:24]}  Kf7 {[%clk 0:00:48]} 28. Bg7 {[%clk 0:00:18]}  Rg5+ {[%clk 0:00:40]} 29. Kh3 {[%clk 0:00:18]}  e3 {[%clk 0:00:36]} 30. Kh4 {[%clk 0:00:18]}  h6 {[%clk 0:00:34]} 31. Bh5+ {[%clk 0:00:18]}  Kg8 {[%clk 0:00:31]} 32. Bxh6 {[%clk 0:00:18]}  Rg2 {[%clk 0:00:29]} 33. f7+ {[%clk 0:00:18]}  Kh7 {[%clk 0:00:27]} 34. f8=Q {[%clk 0:00:19]}  Bxf8 {[%clk 0:00:26]} 35. Rxf8 {[%clk 0:00:18]}  Rxf8 {[%clk 0:00:24]} 36. Bxf8 {[%clk 0:00:19]}  e2 {[%clk 0:00:22]} 37. Re1 {[%clk 0:00:19]}  Kg8 {[%clk 0:00:21]} 38. Bh6 {[%clk 0:00:19]}  Kh7 {[%clk 0:00:18]} 39. Be3 {[%clk 0:00:18]}  Bd5 {[%clk 0:00:18]} 40. Rxe2 {[%clk 0:00:18]}  Rxe2 {[%clk 0:00:17]} 41. Bxe2 {[%clk 0:00:18]}  Bxa2 {[%clk 0:00:17]} 42. Bd3+ {[%clk 0:00:19]}  Kg7 {[%clk 0:00:17]} 43. Bd4+ {[%clk 0:00:19]}  Kf7 {[%clk 0:00:17]} 44. Kg5 {[%clk 0:00:19]}  Bd5 {[%clk 0:00:16]} 45. h4 {[%clk 0:00:20]}  Kg8 {[%clk 0:00:12]} 46. h5 {[%clk 0:00:20]}  Bc4 {[%clk 0:00:08]} 47. Bc2 {[%clk 0:00:18]}  e5 {[%clk 0:00:07]} 48. Bxe5 {[%clk 0:00:18]}  Bd5 {[%clk 0:00:05]} 49. h6 {[%clk 0:00:19]}  Be6 {[%clk 0:00:02]} 50. h7+ {[%clk 0:00:19]}  Kf7 {[%clk 0:00:03]} 51. h8=Q {[%clk 0:00:19]}  Bd5 {[%clk 0:00:02]} 52. Qf6+ {[%clk 0:00:20]}  Ke8 {[%clk 0:00:00]} 53. Bd6 {[%clk 0:00:20]} 1-0


[Site "https://www.chess.com"]

[Event "Titled Tuesday Blitz November 07 Late 2023"]
[White "Bazzano, Sebastian"]
[Black "claudiuprunescu"]
[WhiteFideId "104566"]
[WhiteElo "2252"]
[BlackElo "2214"]
[Result "1-0"]
[Round "5"]
[TimeControl "180+1"]
[Date "2023.11.07"]
[WhiteClock "0:00:24"]
[BlackClock "0:01:08"]
[Board "113"]

1. d4 {[%clk 0:03:00]}  d5 {[%clk 0:02:58]} 2. Bf4 {[%clk 0:03:00]}  e6 {[%clk 0:02:57]} 3. e3 {[%clk 0:02:59]}  Bd6 {[%clk 0:02:57]} 4. Qg4 {[%clk 0:02:58]}  Qf6 {[%clk 0:02:48]} 5. Bxd6 {[%clk 0:02:58]}  cxd6 {[%clk 0:02:48]} 6. Nc3 {[%clk 0:02:58]}  Nh6 {[%clk 0:02:46]} 7. Qg3 {[%clk 0:02:43]}  Bd7 {[%clk 0:02:45]} 8. Qxd6 {[%clk 0:02:36]}  Qe7 {[%clk 0:02:39]} 9. Qxe7+ {[%clk 0:02:30]}  Kxe7 {[%clk 0:02:40]} 10. e4 {[%clk 0:02:30]}  dxe4 {[%clk 0:02:36]} 11. Nxe4 {[%clk 0:02:30]}  Nf5 {[%clk 0:02:36]} 12. Nf3 {[%clk 0:02:29]}  Bc6 {[%clk 0:02:35]} 13. Bd3 {[%clk 0:02:25]}  Rd8 {[%clk 0:02:32]} 14. c3 {[%clk 0:02:20]}  Nd7 {[%clk 0:02:30]} 15. O-O-O {[%clk 0:02:15]}  b6 {[%clk 0:02:25]} 16. Rhe1 {[%clk 0:02:13]}  Kf8 {[%clk 0:02:24]} 17. Neg5 {[%clk 0:02:06]}  h6 {[%clk 0:02:19]} 18. Ne4 {[%clk 0:02:01]}  Rac8 {[%clk 0:02:12]} 19. Kb1 {[%clk 0:02:01]}  Bb7 {[%clk 0:02:10]} 20. Ne5 {[%clk 0:01:36]}  Nxe5 {[%clk 0:02:08]} 21. dxe5 {[%clk 0:01:37]}  h5 {[%clk 0:01:59]} 22. f3 {[%clk 0:01:30]}  Rd5 {[%clk 0:01:58]} 23. Ng3 {[%clk 0:01:14]}  Nh4 {[%clk 0:01:54]} 24. Be4 {[%clk 0:01:09]}  Rxd1+ {[%clk 0:01:53]} 25. Rxd1 {[%clk 0:01:10]}  Bxe4+ {[%clk 0:01:51]} 26. Nxe4 {[%clk 0:01:11]}  Nxg2 {[%clk 0:01:51]} 27. Rd7 {[%clk 0:01:11]}  Ne1 {[%clk 0:01:45]} 28. Nd6 {[%clk 0:01:07]}  Rc5 {[%clk 0:01:33]} 29. Rxf7+ {[%clk 0:00:52]}  Kg8 {[%clk 0:01:33]} 30. f4 {[%clk 0:00:53]}  Nd3 {[%clk 0:01:30]} 31. Kc2 {[%clk 0:00:50]}  Ne1+ {[%clk 0:01:27]} 32. Kb3 {[%clk 0:00:43]}  a5 {[%clk 0:01:23]} 33. a4 {[%clk 0:00:37]}  Nd3 {[%clk 0:01:21]} 34. Re7 {[%clk 0:00:34]}  Nxf4 {[%clk 0:01:19]} 35. Nf7 {[%clk 0:00:27]}  h4 {[%clk 0:01:12]} 36. Ng5 {[%clk 0:00:24]}  Rxe5 {[%clk 0:01:08]} 37. Re8# {[%clk 0:00:24]} 1-0


[Site "https://www.chess.com"]